[Event "Berlin Championship 2024"]
[Site "Berlin"]
[Date "2024.03.31"]
[Round "2.1"]
[White "Hesse, Henrik"]
[Black "Schmidek, Emil"]
[Result "1/2-1/2"]
[ECO "A13"]
[WhiteElo "2312"]
[BlackElo "2439"]
[Annotator "TA"]
[PlyCount "110"]
[EventDate "2024.03.30"]
[EventType "swiss"]
[EventCountry "GER"]
[SourceTitle "playchess.com"]
[Source "ChessBase"]
[SourceQuality "1"]
[TimeControl "40/5400+30:1800+30"]

{[%evp 24,110,0,0,0,0,0,0,0,0,0,0,32,39,53,53,111,85,87,97,115,105,125,114,122,72,76,86,95,19,22,16,13,17,10,10,8,8,0,8,8,8,8,8,8,8,8,8,8,8,8,0,8,8,8,8,8,8,8,8,8,8,8,8,8,8,8,8,8,8,8,8,8,8,8,8,8,8,8,8,8,8,8,8,8,8,8,0,8]} 1. c4 {[%emt 0:00:02]} e6 {[%emt 0:00:06]} 2. g3 {[%emt 0:00:10]} d5 {[%emt 0:00:07]} 3. Bg2 {[%emt 0:00:38]} d4 {[%emt 0:00:24]} 4. Nf3 {[%emt 0:00:21]} c5 {[%emt 0:00:34]} 5. e3 {[%emt 0:00:17]} Nc6 {[%emt 0:00:13]} 6. exd4 {[%emt 0:00:11]} cxd4 {[%emt 0:00:09]} 7. d3 {[%emt 0:00:19]} Nf6 {[%emt 0:00:27]} 8. O-O {[%emt 0:00:09]} Bd6 {[%emt 0:00:13] A13: English Opening: 1...e6.} 9. Na3 {[%emt 0:01:03]} O-O {[%emt 0:00:18]} 10. Nc2 {[%emt 0:00:06]} e5 {[%emt 0:00:11]} 11. b4 {[%emt 0:00:09]} Re8 {[%emt 0:00:11] 11...a6 is not played anymore.} 12. Re1 {[%emt 0:00:31]} a6 {[%emt 0:02:19]} 13. Bg5 {[%emt 0:01:22]} Bf5 {[%emt 0:02:55]} 14. Nh4 {[%emt 0:03:04]} Bd7 {[%emt 0:01:14]} 15. Rb1 {[%emt 0:00:20]} h6 {[%emt 0:13:07]} 16. Bxf6 {[%emt 0:00:30]} Qxf6 {[%emt 0:00:10]} 17. a4 {[%emt 0:00:12]} Nd8 $146 {[%emt 0:19:12]} ({Predecessor:} 17... a5 18. b5 Nd8 19. Qf3 Qxf3 20. Nxf3 Rc8 21. Nd2 b6 22. f4 exf4 23. Rxe8+ Bxe8 {½-½ Shevchenko,K (2661)-Sankalp,G (2485) Elllobregat op 3rd 2022 (7)}) 18. c5 {[%emt 0:13:11]} Bf8 {[%emt 0:07:55]} 19. Na3 {[%emt 0:00:34]} Bc6 {[%emt 0:19:57]} (19... a5 $14) 20. Nc4 $16 {[%emt 0:11:21]} Bxg2 {[%emt 0:01:13]} 21. Kxg2 {[%emt 0:00:20]} a5 {[%emt 0:10:18]} 22. Nxa5 {[%emt 0:18:11]} Bxc5 {[%emt 0:00:34]} 23. Nc4 $1 {[%emt 0:00:16]} Bd6 {[%emt 0:04:56] [#]} 24. Nf5 {[%emt 0:18:58]} (24. Qf3 $142 $1 {[%mdl 512] Qxf6 would now be deadly.} Qe6 (24... Qxf3+ 25. Nxf3) 25. Nf5) 24... Bf8 $16 {[%emt 0:00:48]} 25. Nxd4 {[%emt 0:01:39]} Nc6 {[%emt 0:02:18] [#]} 26. Nxc6 {[%emt 0:05:32]} (26. Nf3 $1 $16) 26... Qxc6+ $11 {[%emt 0:00:07]} 27. Qf3 {[%emt 0:08:35]} Qxf3+ {[%emt 0:02:25]} 28. Kxf3 {[%emt 0:00:06]} Rxa4 {[%emt 0:00:12]} 29. Rxe5 {[%emt 0:01:56]} Rxe5 {[%emt 0:03:55]} 30. Nxe5 {[%emt 0:00:04]} f6 {[%emt 0:02:24]} 31. Nd7 {[%emt 0:07:34]} Rxb4 {[%emt 0:00:24]} 32. Rxb4 {[%emt 0:00:38]} Bxb4 {[%emt 0:00:02]} 33. Ke4 {[%emt 0:00:08]} Kf7 {[%emt 0:01:05]} 34. Kd5 {[%emt 0:00:10]} Ke7 {[%emt 0:01:01]} 35. Nb6 {[%emt 0:00:24]} h5 {[%emt 0:01:32]} 36. f3 {[%emt 0:01:44]} g6 {[%emt 0:02:58]} 37. d4 {[%emt 0:05:51]} g5 {[%emt 0:01:15]} 38. h3 {[%emt 0:00:30]} g4 {[%emt 0:01:39]} 39. hxg4 {[%emt 0:01:16]} hxg4 {[%emt 0:00:05]} 40. fxg4 {[%emt 0:00:03]} Be1 {[%emt 0:01:02]} 41. Nc8+ {[%emt 0:02:46]} Kf7 $1 {[%emt 0:10:08]} 42. Nd6+ {[%emt 0:18:24]} Kg6 $1 {[%emt 0:02:37]} 43. Nxb7 {[%emt 0:08:42]} Kg5 {[%emt 0:02:25]} 44. Ke6 {[%emt 0:00:57]} Bxg3 {[%emt 0:01:43]} 45. d5 {[%emt 0:00:23]} Kxg4 {[%emt 0:00:13]} 46. Kxf6 {[%emt 0:00:03]} Kf3 {[%emt 0:00:20]} 47. Ke6 {[%emt 0:00:21]} Bh2 {[%emt 0:01:08]} 48. Nd6 {[%emt 0:00:29]} Ke3 {[%emt 0:01:39]} 49. Nc4+ {[%emt 0:00:13]} Kd4 {[%emt 0:00:23]} 50. Nd2 {[%emt 0:00:35]} Bb8 {[%emt 0:00:15]} 51. Nb3+ {[%emt 0:00:15]} Ke4 {[%emt 0:00:42]} 52. Nc5+ {[%emt 0:00:08]} Kd4 {[%emt 0:00:10]} 53. Nd7 {[%emt 0:00:20]} Bh2 {[%emt 0:00:08]} 54. Nf6 {[%emt 0:00:21]} Bb8 {[%emt 0:00:14]} 55. Nd7 {[%emt 0:00:45]} Bh2 {[%emt 0:00:38]} 1/2-1/2

[Event "Berlin Championship 2024"]
[Site "Berlin"]
[Date "2024.03.31"]
[Round "2.2"]
[White "Lagunow, Raphael"]
[Black "Eilenberg, Jonas"]
[Result "1-0"]
[ECO "E24"]
[WhiteElo "2421"]
[BlackElo "2303"]
[Annotator "TA"]
[PlyCount "89"]
[EventDate "2024.03.30"]
[EventType "swiss"]
[EventCountry "GER"]
[SourceTitle "playchess.com"]
[Source "ChessBase"]
[SourceQuality "1"]
[TimeControl "40/5400+30:1800+30"]

{[%evp 11,89,0,10,0,1,0,28,3,68,81,77,69,73,45,47,58,53,49,86,87,126,70,87,85,137,58,112,114,123,129,129,129,118,97,135,106,95,100,110,84,88,81,82,82,88,89,108,96,198,178,256,205,182,189,195,182,225,218,604,602,527,411,419,412,29967,29968,29966,29967,29972,29974,29974,29975,29975,29976,29976,29977,29976,29977,29973,29972]} 1. d4 {[%emt 0:00:04]} d5 {[%emt 0:00:14]} 2. c4 {[%emt 0:00:06]} e6 {[%emt 0:00:06]} 3. Nc3 {[%emt 0:00:05]} Bb4 {[%emt 0:00:18]} 4. a3 {[%emt 0:01:18]} Bxc3+ {[%emt 0:00:06]} 5. bxc3 {[%emt 0:00:04]} Nf6 {[%emt 0:00:08]} 6. cxd5 {[%emt 0:08:18]} exd5 {[%emt 0:00:54][%cal Oc7c5]} 7. Bg5 {[%emt 0:00:07]} c5 {[%emt 0:02:34]} 8. dxc5 {[%emt 0:19:55]} Nc6 {[%emt 0:08:32]} 9. Nf3 {[%emt 0:00:22] White has an edge.} Qa5 {[%emt 0:02:11] Prevents Qa4.} ({Black should try} 9... h6 $11 10. Bxf6 Qxf6) 10. Bxf6 $14 {[%emt 0:01:53]} gxf6 {[%emt 0:00:06]} 11. Qd2 {[%emt 0:01:39]} Qxc5 {[%emt 0:00:11]} 12. Nd4 {[%emt 0:02:53]} Be6 {[%emt 0:05:55]} 13. g3 {[%emt 0:09:17]} Rc8 {[%emt 0:03:35]} 14. Bg2 {[%emt 0:02:41]} Ne5 {[%emt 0:04:50]} 15. O-O {[%emt 0:04:29]} O-O {[%emt 0:02:12]} 16. Rfc1 {[%emt 0:06:23]} (16. Qh6 $16) 16... Rfd8 {[%emt 0:14:46]} 17. a4 {[%emt 0:06:36]} b6 {[%emt 0:03:19]} (17... Kg7 $142) 18. h3 {[%emt 0:00:23]} ({White should play} 18. a5 $16) 18... Qf8 {[%emt 0:07:06] Inhibits Qh6.} (18... Kg7 $14) 19. Qf4 $16 {[%emt 0:08:36]} Qg7 {[%emt 0:00:32]} 20. a5 {[%emt 0:00:10]} Qg5 {[%emt 0:10:24]} 21. axb6 {[%emt 0:00:05]} axb6 {[%emt 0:00:05]} 22. Ra6 {[%emt 0:00:08]} Rd6 {[%emt 0:02:21]} 23. Rb1 {[%emt 0:05:45]} Qxf4 {[%emt 0:02:37]} 24. gxf4 {[%emt 0:00:05]} Nc4 {[%emt 0:00:19]} 25. Rb5 {[%emt 0:06:04]} f5 {[%emt 0:06:00]} 26. e3 {[%emt 0:03:28]} Kg7 {[%emt 0:03:31]} 27. Bf1 {[%emt 0:03:51] White is much more active.} Nd2 {[%emt 0:00:59]} 28. Bd3 {[%emt 0:03:02]} Rxc3 {[%emt 0:06:03]} 29. Bxf5 {[%emt 0:00:05]} Nc4 {[%emt 0:08:10]} (29... Nf3+ $16 {keeps fighting.} 30. Nxf3 Bxf5 31. Rbxb6 (31. Raxb6 Rxb6 32. Rxb6 Bxh3 $16) 31... Rxb6 32. Rxb6 Bxh3) 30. Ra7 $18 {[%emt 0:00:14]} Kg8 {[%emt 0:02:06]} (30... Kf6 $142 31. Bxe6 (31. Bxh7 Bxh3 32. Rb1 Ra3 $16) 31... fxe6 32. Rxh7 e5 33. fxe5+ Kxe5 34. Rh5+ Ke4) 31. Nxe6 {[%emt 0:01:40]} fxe6 {[%emt 0:00:04]} 32. Bxh7+ {[%emt 0:00:03]} Kh8 {[%emt 0:00:24]} 33. Re7 {[%emt 0:01:50]} Na3 {[%emt 0:02:30]} 34. Rb4 {[%emt 0:00:53]} b5 {[%emt 0:01:05] Prevents Ra4} (34... d4 35. exd4 Rxh3) 35. f5 {[%emt 0:01:54][%cal Bf4f5,Bf5f6,Bf6f7][%mdl 32]} d4 {[%emt 0:00:58]} 36. f6 {[%emt 0:01:07] Re8+ would kill now.} (36. exd4 exf5 37. d5 (37. Bxf5 Rf6 $18) 37... Rxh3 $18) 36... e5 {[%emt 0:00:53]} 37. exd4 {[%emt 0:00:04]} exd4 {[%emt 0:00:17] [#]} (37... e4 $18 38. Re8+ (38. Bxe4 Rxf6 39. f3 Rh6 $18) 38... Kxh7) 38. Rxd4 $3 {[%emt 0:02:48][%mdl 512] White mates.} Rxd4 {[%emt 0:00:44]} (38... Rc1+ 39. Kg2) 39. Bg6 {[%emt 0:00:05][%cal Re7e8]} Rc8 {[%emt 0:00:55]} 40. Rh7+ {[%emt 0:00:21]} Kg8 {[%emt 0:00:06]} 41. f7+ {[%emt 0:30:04]} Kf8 {[%emt 0:30:03]} 42. Rh8+ {[%emt 0:00:04]} Kg7 {[%emt 0:01:20]} 43. Rxc8 {[%emt 0:00:00]} Rf4 {[%emt 0:00:00]} 44. Rg8+ {[%emt 0:00:00]} Kh6 {[%emt 0:00:00] [#]} 45. h4 $1 {[%emt 0:00:00] Weighted Error Value: White=0.15 (very precise) /Black=0.43.  Mistake:       	White=2     	Black=7      Inaccurate:     	White=1     	Black=4      OK:         	White=16    	Black=8      Best:        	White=1     	---        Brilliant:      	White=1     	---} 1-0

[Event "Berlin Championship 2024"]
[Site "Berlin"]
[Date "2024.03.31"]
[Round "2.3"]
[White "Dubessay, Bastien"]
[Black "Polzin, Rainer"]
[Result "0-1"]
[ECO "E71"]
[WhiteElo "2255"]
[BlackElo "2401"]
[Annotator "RC"]
[PlyCount "144"]
[EventDate "2024.03.30"]
[EventType "swiss"]
[EventCountry "GER"]
[SourceTitle "playchess.com"]
[Source "ChessBase"]
[SourceQuality "1"]
[TimeControl "40/5400+30:1800+30"]

1. d4 {[%emt 0:00:30]} Nf6 {[%emt 0:00:02]} 2. c4 {[%emt 0:00:09]} g6 {[%emt 0:00:08]} 3. Nc3 {[%emt 0:00:05]} Bg7 {[%emt 0:00:04]} 4. e4 {[%emt 0:00:16]} d6 {[%emt 0:00:02]} 5. h3 {[%emt 0:00:10]} O-O {[%emt 0:00:14]} 6. Be3 {[%emt 0:00:07]} Na6 {[%emt 0:05:21]} 7. g4 {[%emt 0:01:49]} c5 {[%emt 0:07:35]} 8. Nge2 {[%emt 0:00:46]} cxd4 {[%emt 0:05:05]} 9. Nxd4 {[%emt 0:00:16]} Bd7 {[%emt 0:00:09]} 10. Bg2 {[%emt 0:02:54]} Rc8 {[%emt 0:00:32]} 11. Qe2 {[%emt 0:12:21]} Nc5 {[%emt 0:01:34]} 12. O-O {[%emt 0:05:19]} h5 {[%emt 0:16:35]} 13. f3 {[%emt 0:14:54]} hxg4 {[%emt 0:12:42]} 14. hxg4 {[%emt 0:01:08]} e5 {[%emt 0:01:43]} 15. Nb3 {[%emt 0:16:39]} Ne6 {[%emt 0:46:14]} 16. Rfd1 {[%emt 0:00:47]} Nf4 {[%emt 0:00:00]} 17. Qf2 {[%emt 0:02:25]} Be6 {[%emt 0:00:00]} 18. c5 {[%emt 0:17:07]} d5 {[%emt 0:00:00]} 19. Bxf4 {[%emt 0:00:36]} exf4 {[%emt 0:00:00]} 20. Rd2 {[%emt 0:01:11]} Rc7 {[%emt 0:00:00]} 21. Bf1 {[%emt 0:08:05]} Rd7 {[%emt 0:00:00]} 22. Bb5 {[%emt 0:00:56]} dxe4 {[%emt 0:00:00]} 23. Bxd7 {[%emt 0:03:01]} e3 {[%emt 0:00:00]} 24. Qe2 {[%emt 0:00:34]} Nxd7 {[%emt 0:00:06]} 25. Rdd1 {[%emt 0:01:52]} Qh4 {[%emt 0:02:13]} 26. Qh2 {[%emt 0:01:35]} Ne5 {[%emt 0:01:47]} 27. Nd4 {[%emt 0:00:36]} Qxh2+ {[%emt 0:00:29]} 28. Kxh2 {[%emt 0:00:01]} Rc8 {[%emt 0:00:08]} 29. Kg2 {[%emt 0:05:29]} Rxc5 {[%emt 0:01:05]} 30. Nxe6 {[%emt 0:01:39]} fxe6 {[%emt 0:00:05]} 31. Rd8+ {[%emt 0:00:19]} Kf7 {[%emt 0:00:06]} 32. Rad1 {[%emt 0:00:04]} Bf6 {[%emt 0:01:20]} 33. Rb8 {[%emt 0:00:41]} Rc7 {[%emt 0:00:18]} 34. Nb5 {[%emt 0:01:04]} Rc2+ {[%emt 0:00:32]} 35. Kh3 {[%emt 0:00:03]} e2 {[%emt 0:00:44]} 36. Nd6+ {[%emt 0:00:42]} Kg7 {[%emt 0:00:46]} 37. Ne8+ {[%emt 0:00:09]} Kf7 {[%emt 0:00:23]} 38. Nd6+ {[%emt 0:00:01]} Kg7 {[%emt 0:00:01]} 39. Ne8+ {[%emt 0:00:07]} Kh6 {[%emt 0:01:08]} 40. g5+ {[%emt 0:00:03]} Bxg5 {[%emt 0:00:32]} 41. Rh1 {[%emt 0:31:38]} Nxf3 {[%emt 0:07:49]} 42. Kg4+ {[%emt 0:00:00]} Bh4 {[%emt 0:01:59]} 43. Kxf3 {[%emt 0:00:00]} e1=Q {[%emt 0:00:06]} 44. Rxe1 {[%emt 0:00:00]} Bxe1 {[%emt 0:00:15]} 45. Rxb7 {[%emt 0:00:00]} g5 {[%emt 0:09:11]} 46. Nf6 {[%emt 0:00:00]} Rf2+ {[%emt 0:02:47]} 47. Kg4 {[%emt 0:00:00]} Kg6 {[%emt 0:02:42]} 48. Ne4 {[%emt 0:00:00]} Re2 {[%emt 0:00:39]} 49. Nxg5 {[%emt 0:00:00]} Rg2+ {[%emt 0:00:08]} 50. Kxf4 {[%emt 0:00:00]} Rxg5 {[%emt 0:00:17]} 51. Rxa7 {[%emt 0:00:00]} Ra5 {[%emt 0:03:14]} 52. Rb7 {[%emt 0:00:00]} Rxa2 {[%emt 0:01:48]} 53. Ke5 {[%emt 0:00:00]} Ra6 {[%emt 0:00:02]} 54. Rb3 {[%emt 0:00:00]} Kf7 {[%emt 0:02:19]} 55. Rb7+ {[%emt 0:00:00]} Ke8 {[%emt 0:00:49]} 56. Rb8+ {[%emt 0:00:00]} Kd7 {[%emt 0:00:29]} 57. Rb7+ {[%emt 0:00:00]} Kd8 {[%emt 0:00:36]} 58. Rb8+ {[%emt 0:00:00]} Kc7 {[%emt 0:00:27]} 59. Rg8 {[%emt 0:00:00]} Ba5 {[%emt 0:02:31]} 60. Rg7+ {[%emt 0:00:00]} Kc8 {[%emt 0:00:16]} 61. Rg8+ {[%emt 0:00:00]} Kb7 {[%emt 0:00:30]} 62. Rg2 {[%emt 0:00:00]} Bc7+ {[%emt 0:00:05]} 63. Kf6 {[%emt 0:00:00]} e5+ {[%emt 0:00:15]} 64. Kf5 {[%emt 0:00:00]} Ra4 {[%emt 0:00:15]} 65. Re2 {[%emt 0:00:00]} Rd4 {[%emt 0:00:27]} 66. Ke6 {[%emt 0:00:00]} Kb6 {[%emt 0:00:20]} 67. Rc2 {[%emt 0:00:00]} Bd6 {[%emt 0:00:18]} 68. Kf5 {[%emt 0:00:00]} Kb5 {[%emt 0:01:23]} 69. Ke6 {[%emt 0:00:00]} Kb4 {[%emt 0:01:18]} 70. Re2 {[%emt 0:00:00]} Kb3 {[%emt 0:00:02]} 71. Rg2 {[%emt 0:00:00]} Bb8 {[%emt 0:00:20]} 72. Rg8 {[%emt 0:00:00]} Rb4 {[%emt 0:00:20]} 0-1

[Event "Berlin Championship 2024"]
[Site "Berlin"]
[Date "2024.03.31"]
[Round "2.4"]
[White "Lagunow, Alexander"]
[Black "Verbitsky, Jaroslaw"]
[Result "1-0"]
[ECO "A11"]
[WhiteElo "2350"]
[BlackElo "1992"]
[Annotator "RC"]
[PlyCount "49"]
[EventDate "2024.03.30"]
[EventType "swiss"]
[EventCountry "GER"]
[SourceTitle "playchess.com"]
[Source "ChessBase"]
[SourceQuality "1"]
[TimeControl "40/5400+30:1800+30"]

1. Nf3 {[%emt 0:00:04]} d5 {[%emt 0:00:25]} 2. g3 {[%emt 0:00:06]} c6 {[%emt 0:00:20]} 3. Bg2 {[%emt 0:00:07]} Bg4 {[%emt 0:00:13]} 4. c4 {[%emt 0:00:27]} e6 {[%emt 0:01:01]} 5. cxd5 {[%emt 0:00:15]} exd5 {[%emt 0:03:11]} 6. O-O {[%emt 0:01:19]} Nf6 {[%emt 0:00:51]} 7. d3 {[%emt 0:00:23]} Be7 {[%emt 0:03:59]} 8. h3 {[%emt 0:00:58]} Bxf3 {[%emt 0:10:16]} 9. Bxf3 {[%emt 0:00:13]} d4 {[%emt 0:02:00]} 10. Qa4 {[%emt 1:31:38]} O-O {[%emt 0:05:34]} 11. Nd2 {[%emt 0:00:00]} Bc5 {[%emt 0:40:13]} 12. b4 {[%emt 0:00:00]} b5 {[%emt 0:00:07]} 13. Qb3 {[%emt 0:00:00]} Be7 {[%emt 0:02:51]} 14. a4 {[%emt 0:00:00]} a5 {[%emt 0:01:51]} 15. axb5 {[%emt 0:00:00]} Bxb4 {[%emt 0:00:07]} 16. bxc6 {[%emt 0:00:00]} Ra6 {[%emt 0:08:14]} 17. Qc4 {[%emt 0:00:00]} Qb6 {[%emt 0:00:08]} 18. c7 {[%emt 0:00:00]} Nc6 {[%emt 0:00:05]} 19. Ba3 {[%emt 0:00:00]} Rc8 {[%emt 0:04:33]} 20. Bxc6 {[%emt 0:00:00]} Rxc7 {[%emt 0:00:26]} 21. Bxb4 {[%emt 0:00:00]} Rxc6 {[%emt 0:03:01]} 22. Bxa5 {[%emt 0:00:00]} Qa7 {[%emt 0:02:08]} 23. Qb3 {[%emt 0:00:00]} Nd7 {[%emt 0:00:43]} 24. Nc4 {[%emt 0:00:00]} Nc5 {[%emt 0:00:22]} 25. Qb2 {[%emt 0:00:00]} 1-0

[Event "Berlin Championship 2024"]
[Site "Berlin"]
[Date "2024.03.31"]
[Round "2.5"]
[White "Foerster, Jonas"]
[Black "Florstedt, Johannes"]
[Result "1/2-1/2"]
[ECO "D76"]
[WhiteElo "2238"]
[BlackElo "2348"]
[Annotator "RC"]
[PlyCount "95"]
[EventDate "2024.03.30"]
[EventType "swiss"]
[EventCountry "GER"]
[SourceTitle "playchess.com"]
[Source "ChessBase"]
[SourceQuality "1"]
[TimeControl "40/5400+30:1800+30"]

1. d4 {[%emt 0:02:33]} Nf6 {[%emt 0:04:06]} 2. c4 {[%emt 0:00:30]} g6 {[%emt 0:00:07]} 3. Nf3 {[%emt 0:01:12]} Bg7 {[%emt 0:00:08]} 4. g3 {[%emt 0:02:13]} d5 {[%emt 0:04:05]} 5. cxd5 {[%emt 0:06:03]} Nxd5 {[%emt 0:02:15]} 6. Bg2 {[%emt 0:01:26]} O-O {[%emt 0:00:07]} 7. O-O {[%emt 0:00:37]} Nb6 {[%emt 0:00:11]} 8. Nc3 {[%emt 0:07:16]} Nc6 {[%emt 0:01:30]} 9. e3 {[%emt 0:08:56]} Re8 {[%emt 0:00:20]} 10. Ne1 {[%emt 0:14:45]} e5 {[%emt 0:02:44]} 11. d5 {[%emt 0:00:18]} Na5 {[%emt 0:03:02]} 12. e4 {[%emt 0:05:01]} c6 {[%emt 0:01:23]} 13. Be3 {[%emt 0:18:47]} Nac4 {[%emt 0:02:07]} 14. Bxb6 {[%emt 0:00:17]} Nxb6 {[%emt 0:12:46]} 15. dxc6 {[%emt 0:04:32]} bxc6 {[%emt 0:01:59]} 16. Qxd8 {[%emt 0:04:15]} Rxd8 {[%emt 0:00:07]} 17. Nf3 {[%emt 0:00:07]} f6 {[%emt 0:02:23]} 18. Rfc1 {[%emt 0:08:08]} Bh6 {[%emt 0:01:37]} 19. Rc2 {[%emt 0:01:00]} Bg4 {[%emt 0:01:49]} 20. h3 {[%emt 0:03:10]} Be6 {[%emt 0:00:20]} 21. b3 {[%emt 0:04:43]} Rd6 {[%emt 0:00:43]} 22. g4 {[%emt 0:00:49]} Rad8 {[%emt 0:02:29]} 23. Bf1 {[%emt 0:01:35]} a5 {[%emt 0:03:33]} 24. Be2 {[%emt 0:00:33]} Kf7 {[%emt 0:03:28]} 25. Rd1 {[%emt 0:01:26]} Bf4 {[%emt 0:04:52]} 26. Rxd6 {[%emt 0:00:34]} Rxd6 {[%emt 0:00:06]} 27. Nd1 {[%emt 0:01:00]} f5 {[%emt 0:00:46]} 28. exf5 {[%emt 0:00:54]} gxf5 {[%emt 0:00:07]} 29. Ne3 {[%emt 0:00:16]} fxg4 {[%emt 0:03:14]} 30. Nxg4 {[%emt 0:00:20]} Nd7 {[%emt 0:16:18]} 31. Bc4 {[%emt 0:00:21]} Rd1+ {[%emt 0:00:18]} 32. Kg2 {[%emt 0:00:11]} Bd5 {[%emt 0:00:14]} 33. Ne3 {[%emt 0:01:26]} Bxe3 {[%emt 0:08:16]} 34. fxe3 {[%emt 0:00:05]} Kf6 {[%emt 0:05:03]} 35. Kg3 {[%emt 0:00:04]} Kf5 {[%emt 0:02:21]} 36. Be2 {[%emt 0:01:20]} Ra1 {[%emt 0:00:41]} 37. Bd3+ {[%emt 0:00:26]} e4 {[%emt 0:00:18]} 38. Nd4+ {[%emt 0:00:05]} Ke5 {[%emt 0:00:40]} 39. Be2 {[%emt 0:02:04]} c5 {[%emt 0:05:14]} 40. Nb5 {[%emt 0:00:04]} a4 {[%emt 0:02:53]} 41. bxa4 {[%emt 0:03:28]} Bxa2 {[%emt 0:00:46]} 42. Bg4 {[%emt 0:17:30]} Be6 {[%emt 0:02:10]} 43. Bxe6 {[%emt 0:00:36]} Kxe6 {[%emt 0:00:05]} 44. Nc3 {[%emt 0:01:40]} Nf6 {[%emt 0:15:28]} 45. Ra2 {[%emt 0:06:04]} Rxa2 {[%emt 0:11:00]} 46. Nxa2 {[%emt 0:00:03]} Nd5 {[%emt 0:00:04]} 47. a5 {[%emt 0:00:08]} c4 {[%emt 0:00:21]} 48. a6 {[%emt 0:00:20]} 1/2-1/2